[Event "Titled Tuesday Blitz May 30 Early 2023"]
[White "Ibadov, Dashgyn"]
[Black "Hambleton, Aman"]
[WhiteFideId "24107514"]
[BlackFideId "2606577"]
[WhiteElo "2208"]
[BlackElo "2511"]
[Result "1-0"]
[Round "07"]
[TimeControl "180+2"]
[Date "2023.05.30"]
[WhiteClock "0:00:14"]
[BlackClock "0:00:00"]

1. e4 {[%clk 0:03:00]}  b6 {[%clk 0:02:59]} 2. d4 {[%clk 0:02:58]}  Bb7 {[%clk 0:02:59]} 3. Bd3 {[%clk 0:02:58]}  e6 {[%clk 0:02:59]} 4. Nf3 {[%clk 0:02:57]}  d5 {[%clk 0:02:59]} 5. Nbd2 {[%clk 0:02:43]}  Nf6 {[%clk 0:02:57]} 6. Qe2 {[%clk 0:02:32]}  Nxe4 {[%clk 0:02:57]} 7. Nxe4 {[%clk 0:02:32]}  dxe4 {[%clk 0:02:58]} 8. Bxe4 {[%clk 0:02:32]}  Bxe4 {[%clk 0:02:59]} 9. Qxe4 {[%clk 0:02:33]}  Qd5 {[%clk 0:03:00]} 10. Qxd5 {[%clk 0:02:30]}  exd5 {[%clk 0:03:01]} 11. Bf4 {[%clk 0:02:29]}  c6 {[%clk 0:03:02]} 12. O-O {[%clk 0:02:18]}  f6 {[%clk 0:03:02]} 13. b3 {[%clk 0:02:13]}  Kd7 {[%clk 0:02:48]} 14. c4 {[%clk 0:02:11]}  Bd6 {[%clk 0:02:46]} 15. Bxd6 {[%clk 0:01:59]}  Kxd6 {[%clk 0:02:47]} 16. Nh4 {[%clk 0:01:47]}  g6 {[%clk 0:02:47]} 17. g3 {[%clk 0:01:38]}  Na6 {[%clk 0:02:40]} 18. Ng2 {[%clk 0:01:35]}  Nc7 {[%clk 0:02:37]} 19. Ne3 {[%clk 0:01:32]}  Rhe8 {[%clk 0:02:34]} 20. Rac1 {[%clk 0:01:30]}  a5 {[%clk 0:02:08]} 21. Rc2 {[%clk 0:01:25]}  Ne6 {[%clk 0:01:17]} 22. Rd1 {[%clk 0:00:59]}  a4 {[%clk 0:01:16]} 23. b4 {[%clk 0:00:40]}  a3 {[%clk 0:01:16]} 24. b5 {[%clk 0:00:24]}  Ra4 {[%clk 0:00:04]} 25. cxd5 {[%clk 0:00:14]}  cxd5 {[%clk 0:00:02]} 26. Rc6+ {[%clk 0:00:15]}  Kd7 {[%clk 0:00:03]} 27. Nxd5 {[%clk 0:00:14]}  Rf8 {[%clk 0:00:00]} 28. Nxb6+ {[%clk 0:00:14]} 1-0


[Site "https://www.chess.com"]

[Event "Titled Tuesday Blitz May 30 Early 2023"]
[White "Sadykov, Ramil"]
[Black "Fernandez Guillen, Ernesto J."]
[WhiteFideId "24113590"]
[BlackFideId "3512428"]
[WhiteElo "2245"]
[BlackElo "2429"]
[Result "1-0"]
[Round "07"]
[TimeControl "180+2"]
[Date "2023.05.30"]
[WhiteClock "0:00:12"]
[BlackClock "0:00:04"]

1. Nf3 {[%clk 0:02:51]}  Nf6 {[%clk 0:03:00]} 2. c4 {[%clk 0:02:50]}  g6 {[%clk 0:02:58]} 3. g3 {[%clk 0:02:49]}  Bg7 {[%clk 0:02:59]} 4. Bg2 {[%clk 0:02:49]}  O-O {[%clk 0:03:00]} 5. O-O {[%clk 0:02:49]}  d5 {[%clk 0:03:00]} 6. cxd5 {[%clk 0:02:46]}  Nxd5 {[%clk 0:03:01]} 7. d3 {[%clk 0:02:42]}  c6 {[%clk 0:02:58]} 8. a3 {[%clk 0:02:38]}  Nd7 {[%clk 0:02:52]} 9. Qc2 {[%clk 0:02:38]}  e5 {[%clk 0:02:50]} 10. Nc3 {[%clk 0:02:35]}  N7b6 {[%clk 0:02:13]} 11. Bg5 {[%clk 0:02:32]}  f6 {[%clk 0:02:01]} 12. Bd2 {[%clk 0:02:32]}  Be6 {[%clk 0:02:01]} 13. Ne4 {[%clk 0:02:31]}  Qc7 {[%clk 0:01:57]} 14. Rac1 {[%clk 0:02:23]}  Rad8 {[%clk 0:01:55]} 15. b4 {[%clk 0:02:20]}  Qb8 {[%clk 0:01:47]} 16. Nc5 {[%clk 0:02:17]}  Bf7 {[%clk 0:01:47]} 17. Rfd1 {[%clk 0:02:08]}  h6 {[%clk 0:01:46]} 18. e4 {[%clk 0:02:07]}  Nc7 {[%clk 0:01:45]} 19. Be3 {[%clk 0:02:05]}  f5 {[%clk 0:01:32]} 20. d4 {[%clk 0:01:49]}  fxe4 {[%clk 0:01:22]} 21. Nxe5 {[%clk 0:01:49]}  Ncd5 {[%clk 0:01:01]} 22. Nxf7 {[%clk 0:01:41]}  Rxf7 {[%clk 0:01:02]} 23. Bxe4 {[%clk 0:01:38]}  Nxe3 {[%clk 0:01:00]} 24. fxe3 {[%clk 0:01:39]}  Rdf8 {[%clk 0:00:59]} 25. Rf1 {[%clk 0:01:06]}  Qd6 {[%clk 0:00:53]} 26. Bxg6 {[%clk 0:00:57]}  Rxf1+ {[%clk 0:00:40]} 27. Rxf1 {[%clk 0:00:58]}  Rxf1+ {[%clk 0:00:40]} 28. Kxf1 {[%clk 0:00:59]}  Nd5 {[%clk 0:00:40]} 29. Ke2 {[%clk 0:00:47]}  Kh8 {[%clk 0:00:12]} 30. Qf5 {[%clk 0:00:45]}  Bf6 {[%clk 0:00:04]} 31. Qc8+ {[%clk 0:00:24]}  Kg7 {[%clk 0:00:04]} 32. Bf5 {[%clk 0:00:21]}  Qe7 {[%clk 0:00:01]} 33. Qxb7 {[%clk 0:00:20]}  Nc3+ {[%clk 0:00:01]} 34. Kd3 {[%clk 0:00:20]}  Nd5 {[%clk 0:00:02]} 35. e4 {[%clk 0:00:15]}  Qxb7 {[%clk 0:00:01]} 36. Nxb7 {[%clk 0:00:16]}  Ne7 {[%clk 0:00:02]} 37. Bd7 {[%clk 0:00:15]}  Bg5 {[%clk 0:00:03]} 38. Na5 {[%clk 0:00:15]}  Bc1 {[%clk 0:00:03]} 39. a4 {[%clk 0:00:14]}  Ba3 {[%clk 0:00:03]} 40. Kc4 {[%clk 0:00:13]}  Kf6 {[%clk 0:00:02]} 41. Nxc6 {[%clk 0:00:12]}  Ng6 {[%clk 0:00:03]} 42. e5+ {[%clk 0:00:12]}  Kf7 {[%clk 0:00:02]} 43. Nxa7 {[%clk 0:00:12]}  Ke7 {[%clk 0:00:02]} 44. Bc6 {[%clk 0:00:13]}  Bc1 {[%clk 0:00:03]} 45. Be4 {[%clk 0:00:13]}  Kd8 {[%clk 0:00:04]} 46. Bxg6 {[%clk 0:00:12]}  Kc7 {[%clk 0:00:04]} 47. Nb5+ {[%clk 0:00:12]} 1-0


[Site "https://www.chess.com"]

[Event "Titled Tuesday Blitz May 30 Early 2023"]
[White "splendidkid"]
[Black "Streltsov, Alexey"]
[BlackFideId "24104434"]
[WhiteElo "2766"]
[BlackElo "2592"]
[Result "0-1"]
[Round "07"]
[TimeControl "180+2"]
[Date "2023.05.30"]
[WhiteClock "0:00:08"]
[BlackClock "0:00:57"]

1. d4 {[%clk 0:03:00]}  d5 {[%clk 0:03:00]} 2. Nf3 {[%clk 0:03:00]}  Nf6 {[%clk 0:02:57]} 3. c4 {[%clk 0:03:00]}  dxc4 {[%clk 0:02:56]} 4. Nc3 {[%clk 0:02:59]}  a6 {[%clk 0:02:56]} 5. a4 {[%clk 0:02:58]}  Nc6 {[%clk 0:02:56]} 6. Bg5 {[%clk 0:02:58]}  h6 {[%clk 0:02:53]} 7. Bh4 {[%clk 0:02:58]}  g5 {[%clk 0:02:53]} 8. Bg3 {[%clk 0:02:57]}  g4 {[%clk 0:02:54]} 9. Ne5 {[%clk 0:02:58]}  Qxd4 {[%clk 0:02:54]} 10. Nxc6 {[%clk 0:02:55]}  Qxd1+ {[%clk 0:02:54]} 11. Rxd1 {[%clk 0:02:56]}  bxc6 {[%clk 0:02:55]} 12. e3 {[%clk 0:02:57]}  Be6 {[%clk 0:02:51]} 13. Bxc7 {[%clk 0:02:56]}  Nd7 {[%clk 0:02:50]} 14. Be2 {[%clk 0:02:29]}  Bg7 {[%clk 0:02:48]} 15. O-O {[%clk 0:02:29]}  Ra7 {[%clk 0:02:49]} 16. Bg3 {[%clk 0:02:28]}  Rb7 {[%clk 0:02:49]} 17. Rd2 {[%clk 0:02:29]}  Nc5 {[%clk 0:02:41]} 18. Rfd1 {[%clk 0:02:14]}  O-O {[%clk 0:02:41]} 19. Rc2 {[%clk 0:02:09]}  Bf5 {[%clk 0:02:26]} 20. Rcd2 {[%clk 0:02:07]}  Nd3 {[%clk 0:02:14]} 21. e4 {[%clk 0:01:34]}  Be6 {[%clk 0:02:14]} 22. Bxd3 {[%clk 0:01:30]}  cxd3 {[%clk 0:02:15]} 23. Rc1 {[%clk 0:01:30]}  Rd8 {[%clk 0:02:09]} 24. Nd1 {[%clk 0:01:30]}  h5 {[%clk 0:02:03]} 25. Bf4 {[%clk 0:01:28]}  Bb3 {[%clk 0:01:54]} 26. Ne3 {[%clk 0:01:27]}  Bxa4 {[%clk 0:01:52]} 27. Rc4 {[%clk 0:01:27]}  Bb5 {[%clk 0:01:39]} 28. Rc5 {[%clk 0:01:27]}  Ba4 {[%clk 0:01:34]} 29. Rc4 {[%clk 0:01:26]}  e5 {[%clk 0:01:20]} 30. Bg3 {[%clk 0:01:14]}  Rd4 {[%clk 0:01:19]} 31. Rc5 {[%clk 0:01:08]}  Bc2 {[%clk 0:01:10]} 32. Nxc2 {[%clk 0:00:50]}  Rxb2 {[%clk 0:01:11]} 33. f3 {[%clk 0:00:32]}  Bh6 {[%clk 0:00:51]} 34. Nxd4 {[%clk 0:00:13]}  Be3+ {[%clk 0:00:52]} 35. Kf1 {[%clk 0:00:12]}  Rb1+ {[%clk 0:00:53]} 36. Be1 {[%clk 0:00:12]}  Bxd2 {[%clk 0:00:53]} 37. Nxc6 {[%clk 0:00:09]}  Rxe1+ {[%clk 0:00:52]} 38. Kf2 {[%clk 0:00:10]}  Re2+ {[%clk 0:00:53]} 39. Kf1 {[%clk 0:00:09]}  Be3 {[%clk 0:00:54]} 40. Rd5 {[%clk 0:00:08]}  Rf2+ {[%clk 0:00:55]} 41. Ke1 {[%clk 0:00:09]}  d2+ {[%clk 0:00:55]} 42. Kd1 {[%clk 0:00:09]}  Rf1+ {[%clk 0:00:56]} 43. Kc2 {[%clk 0:00:09]}  Rc1+ {[%clk 0:00:56]} 44. Kb2 {[%clk 0:00:09]}  d1=Q {[%clk 0:00:56]} 45. Rxd1 {[%clk 0:00:08]}  Rxd1 {[%clk 0:00:57]} 0-1


[Site "https://www.chess.com"]

[Event "Titled Tuesday Blitz May 30 Early 2023"]
[White "Melian, Juan Sebastian"]
[Black "Quintiliano Pinto, Renato R."]
[WhiteFideId "3706575"]
[BlackFideId "2117568"]
[WhiteElo "2092"]
[BlackElo "2459"]
[Result "1/2-1/2"]
[Round "07"]
[TimeControl "180+2"]
[Date "2023.05.30"]
[WhiteClock "0:00:05"]
[BlackClock "0:00:14"]

1. d4 {[%clk 0:03:00]}  Nf6 {[%clk 0:02:59]} 2. c4 {[%clk 0:03:01]}  e6 {[%clk 0:02:58]} 3. Nc3 {[%clk 0:03:01]}  Bb4 {[%clk 0:02:57]} 4. Qc2 {[%clk 0:03:02]}  d5 {[%clk 0:02:55]} 5. a3 {[%clk 0:02:59]}  Bxc3+ {[%clk 0:02:51]} 6. Qxc3 {[%clk 0:03:00]}  dxc4 {[%clk 0:02:50]} 7. Qxc4 {[%clk 0:03:00]}  O-O {[%clk 0:02:50]} 8. Nf3 {[%clk 0:03:00]}  b6 {[%clk 0:02:50]} 9. Bg5 {[%clk 0:02:46]}  Ba6 {[%clk 0:02:49]} 10. Qc2 {[%clk 0:02:47]}  c5 {[%clk 0:02:36]} 11. dxc5 {[%clk 0:02:46]}  bxc5 {[%clk 0:02:36]} 12. Rd1 {[%clk 0:02:35]}  Qa5+ {[%clk 0:02:32]} 13. Qd2 {[%clk 0:02:24]}  Qxd2+ {[%clk 0:02:32]} 14. Nxd2 {[%clk 0:02:25]}  Nbd7 {[%clk 0:02:28]} 15. e3 {[%clk 0:02:22]}  Bxf1 {[%clk 0:02:23]} 16. Rxf1 {[%clk 0:02:22]}  Rab8 {[%clk 0:02:18]} 17. Nc4 {[%clk 0:02:00]}  Nd5 {[%clk 0:02:17]} 18. Ke2 {[%clk 0:01:46]}  N7b6 {[%clk 0:02:09]} 19. Nxb6 {[%clk 0:01:29]}  Rxb6 {[%clk 0:02:03]} 20. Rd2 {[%clk 0:01:27]}  f6 {[%clk 0:01:49]} 21. Bh4 {[%clk 0:00:42]}  Rfb8 {[%clk 0:01:47]} 22. Rc1 {[%clk 0:00:38]}  Rxb2 {[%clk 0:01:42]} 23. Rxc5 {[%clk 0:00:33]}  Rxd2+ {[%clk 0:01:42]} 24. Kxd2 {[%clk 0:00:34]}  Rb2+ {[%clk 0:01:42]} 25. Ke1 {[%clk 0:00:34]}  Rb3 {[%clk 0:01:31]} 26. Ra5 {[%clk 0:00:33]}  Rb7 {[%clk 0:01:04]} 27. Bg3 {[%clk 0:00:33]}  Nc3 {[%clk 0:01:00]} 28. Kd2 {[%clk 0:00:25]}  Nd5 {[%clk 0:00:57]} 29. Kc2 {[%clk 0:00:23]}  Nb6 {[%clk 0:00:55]} 30. Rb5 {[%clk 0:00:20]}  Rd7 {[%clk 0:00:54]} 31. Rc5 {[%clk 0:00:15]}  e5 {[%clk 0:00:52]} 32. f3 {[%clk 0:00:13]}  Nd5 {[%clk 0:00:46]} 33. Bf2 {[%clk 0:00:13]}  h5 {[%clk 0:00:42]} 34. g3 {[%clk 0:00:13]}  Nb6 {[%clk 0:00:27]} 35. e4 {[%clk 0:00:13]}  Kf7 {[%clk 0:00:27]} 36. Rc6 {[%clk 0:00:13]}  Rb7 {[%clk 0:00:21]} 37. Bxb6 {[%clk 0:00:12]}  axb6 {[%clk 0:00:19]} 38. Kc3 {[%clk 0:00:13]}  Ke7 {[%clk 0:00:19]} 39. Kb4 {[%clk 0:00:13]}  Kd7 {[%clk 0:00:19]} 40. Rc3 {[%clk 0:00:12]}  Ra7 {[%clk 0:00:19]} 41. a4 {[%clk 0:00:09]}  Rc7 {[%clk 0:00:18]} 42. Rd3+ {[%clk 0:00:07]}  Kc6 {[%clk 0:00:18]} 43. Rd8 {[%clk 0:00:06]}  Rd7 {[%clk 0:00:17]} 44. Rc8+ {[%clk 0:00:06]}  Kb7 {[%clk 0:00:17]} 45. Rg8 {[%clk 0:00:07]}  Kc6 {[%clk 0:00:14]} 46. Kc3 {[%clk 0:00:07]}  Kc5 {[%clk 0:00:14]} 47. Rc8+ {[%clk 0:00:06]}  Kd6 {[%clk 0:00:14]} 48. Rg8 {[%clk 0:00:07]}  Kc5 {[%clk 0:00:14]} 49. Rc8+ {[%clk 0:00:07]}  Kd6 {[%clk 0:00:15]} 50. Kc4 {[%clk 0:00:05]}  g5 {[%clk 0:00:13]} 51. Rh8 {[%clk 0:00:04]}  Kc6 {[%clk 0:00:12]} 52. Rxh5 {[%clk 0:00:04]}  Rd4+ {[%clk 0:00:12]} 53. Kc3 {[%clk 0:00:04]}  Rxa4 {[%clk 0:00:12]} 54. Rh6 {[%clk 0:00:05]}  Ra3+ {[%clk 0:00:13]} 55. Kc4 {[%clk 0:00:04]}  Rxf3 {[%clk 0:00:13]} 56. h4 {[%clk 0:00:02]}  gxh4 {[%clk 0:00:12]} 57. gxh4 {[%clk 0:00:03]}  Re3 {[%clk 0:00:12]} 58. Rxf6+ {[%clk 0:00:01]}  Kb7 {[%clk 0:00:12]} 59. Kd5 {[%clk 0:00:02]}  b5 {[%clk 0:00:11]} 60. Kxe5 {[%clk 0:00:02]}  b4 {[%clk 0:00:12]} 61. Kd4 {[%clk 0:00:03]}  Rh3 {[%clk 0:00:12]} 62. Rf2 {[%clk 0:00:02]}  b3 {[%clk 0:00:12]} 63. Rb2 {[%clk 0:00:03]}  Kc6 {[%clk 0:00:13]} 64. Kc4 {[%clk 0:00:03]}  Rxh4 {[%clk 0:00:13]} 65. Rxb3 {[%clk 0:00:03]}  Rxe4+ {[%clk 0:00:13]} 66. Kd3 {[%clk 0:00:04]}  Rh4 {[%clk 0:00:13]} 67. Rc3+ {[%clk 0:00:04]}  Kd5 {[%clk 0:00:14]} 68. Kc2 {[%clk 0:00:05]}  Rc4 {[%clk 0:00:13]} 69. Rxc4 {[%clk 0:00:05]}  Kxc4 {[%clk 0:00:14]} 1/2-1/2


[Site "https://www.chess.com"]

[Event "Titled Tuesday Blitz May 30 Early 2023"]
[White "Sieciechowicz, Marcin"]
[Black "Bodnaruk, Anastasia"]
[WhiteFideId "1130170"]
[BlackFideId "4181751"]
[WhiteElo "2302"]
[BlackElo "2304"]
[Result "1/2-1/2"]
[Round "07"]
[TimeControl "180+2"]
[Date "2023.05.30"]
[WhiteClock "0:00:12"]
[BlackClock "0:00:05"]

1. d4 {[%clk 0:03:00]}  Nf6 {[%clk 0:02:59]} 2. c4 {[%clk 0:03:01]}  g6 {[%clk 0:03:00]} 3. Nc3 {[%clk 0:03:01]}  Bg7 {[%clk 0:03:00]} 4. e4 {[%clk 0:03:02]}  d6 {[%clk 0:03:01]} 5. f3 {[%clk 0:03:02]}  O-O {[%clk 0:03:01]} 6. Be3 {[%clk 0:03:03]}  c5 {[%clk 0:03:01]} 7. Nge2 {[%clk 0:03:03]}  Nc6 {[%clk 0:03:00]} 8. d5 {[%clk 0:03:03]}  Ne5 {[%clk 0:02:57]} 9. Ng3 {[%clk 0:03:03]}  e6 {[%clk 0:02:53]} 10. Be2 {[%clk 0:03:04]}  exd5 {[%clk 0:02:53]} 11. cxd5 {[%clk 0:03:04]}  h5 {[%clk 0:02:52]} 12. O-O {[%clk 0:03:03]}  a6 {[%clk 0:02:50]} 13. a4 {[%clk 0:03:01]}  Bd7 {[%clk 0:02:46]} 14. Qd2 {[%clk 0:02:30]}  b5 {[%clk 0:02:37]} 15. Bh6 {[%clk 0:02:29]}  c4 {[%clk 0:02:16]} 16. Bxg7 {[%clk 0:02:21]}  Kxg7 {[%clk 0:02:16]} 17. Kh1 {[%clk 0:02:05]}  h4 {[%clk 0:02:11]} 18. Nf5+ {[%clk 0:01:56]}  gxf5 {[%clk 0:02:07]} 19. Qg5+ {[%clk 0:01:56]}  Kh8 {[%clk 0:02:07]} 20. exf5 {[%clk 0:01:55]}  Nh7 {[%clk 0:02:04]} 21. Qe3 {[%clk 0:01:53]}  f6 {[%clk 0:01:52]} 22. f4 {[%clk 0:01:52]}  Nd3 {[%clk 0:01:41]} 23. Bxd3 {[%clk 0:01:51]}  cxd3 {[%clk 0:01:41]} 24. Qxd3 {[%clk 0:01:51]}  bxa4 {[%clk 0:01:36]} 25. Rfe1 {[%clk 0:01:49]}  Rf7 {[%clk 0:01:26]} 26. Re6 {[%clk 0:01:31]}  Bxe6 {[%clk 0:01:19]} 27. fxe6 {[%clk 0:01:32]}  Rg7 {[%clk 0:01:15]} 28. Rxa4 {[%clk 0:01:25]}  Qb6 {[%clk 0:01:09]} 29. Qd2 {[%clk 0:01:13]}  Rag8 {[%clk 0:01:07]} 30. Re4 {[%clk 0:01:03]}  f5 {[%clk 0:00:56]} 31. Re2 {[%clk 0:01:03]}  Nf6 {[%clk 0:00:56]} 32. Qd3 {[%clk 0:01:00]}  Ng4 {[%clk 0:00:44]} 33. Nd1 {[%clk 0:00:53]}  Qb5 {[%clk 0:00:35]} 34. Qf3 {[%clk 0:00:49]}  Rc7 {[%clk 0:00:27]} 35. h3 {[%clk 0:00:42]}  Rc1 {[%clk 0:00:21]} 36. hxg4 {[%clk 0:00:26]}  Rxd1+ {[%clk 0:00:22]} 37. Kh2 {[%clk 0:00:26]}  fxg4 {[%clk 0:00:20]} 38. Qc3+ {[%clk 0:00:26]}  Rg7 {[%clk 0:00:17]} 39. Qc8+ {[%clk 0:00:23]}  Kh7 {[%clk 0:00:17]} 40. Qc2+ {[%clk 0:00:23]}  Qd3 {[%clk 0:00:11]} 41. Qxd3+ {[%clk 0:00:22]}  Rxd3 {[%clk 0:00:11]} 42. e7 {[%clk 0:00:22]}  Rg8 {[%clk 0:00:11]} 43. e8=Q {[%clk 0:00:21]}  Rxe8 {[%clk 0:00:11]} 44. Rxe8 {[%clk 0:00:22]}  Rd2 {[%clk 0:00:12]} 45. Kg1 {[%clk 0:00:16]}  Rxb2 {[%clk 0:00:10]} 46. Re6 {[%clk 0:00:15]}  a5 {[%clk 0:00:10]} 47. Rxd6 {[%clk 0:00:15]}  g3 {[%clk 0:00:09]} 48. Kf1 {[%clk 0:00:15]}  Rf2+ {[%clk 0:00:10]} 49. Kg1 {[%clk 0:00:16]}  Rxf4 {[%clk 0:00:10]} 50. Ra6 {[%clk 0:00:15]}  a4 {[%clk 0:00:10]} 51. d6 {[%clk 0:00:15]}  Rd4 {[%clk 0:00:11]} 52. Kf1 {[%clk 0:00:15]}  Kg7 {[%clk 0:00:09]} 53. d7 {[%clk 0:00:14]}  Rxd7 {[%clk 0:00:09]} 54. Rxa4 {[%clk 0:00:14]}  Rf7+ {[%clk 0:00:09]} 55. Kg1 {[%clk 0:00:13]}  Rc7 {[%clk 0:00:08]} 56. Kf1 {[%clk 0:00:12]}  Rc1+ {[%clk 0:00:09]} 57. Ke2 {[%clk 0:00:12]}  Rc2+ {[%clk 0:00:09]} 58. Ke3 {[%clk 0:00:11]}  Rxg2 {[%clk 0:00:04]} 59. Rxh4 {[%clk 0:00:11]}  Kf6 {[%clk 0:00:05]} 60. Kf3 {[%clk 0:00:11]}  Rg1 {[%clk 0:00:05]} 61. Rg4 {[%clk 0:00:11]}  Kf5 {[%clk 0:00:04]} 62. Rxg3 {[%clk 0:00:12]}  Rxg3+ {[%clk 0:00:05]} 63. Kxg3 {[%clk 0:00:12]} 1/2-1/2


[Site "https://www.chess.com"]

[Event "Titled Tuesday Blitz May 30 Early 2023"]
[White "Seo, Jung Min"]
[Black "Marra, Eduardo da Costa"]
[WhiteFideId "1734687"]
[BlackFideId "2106990"]
[WhiteElo "2468"]
[BlackElo "2252"]
[Result "0-1"]
[Round "07"]
[TimeControl "180+2"]
[Date "2023.05.30"]
[WhiteClock "0:00:15"]
[BlackClock "0:00:29"]

1. d4 {[%clk 0:02:58]}  Nf6 {[%clk 0:02:59]} 2. Nf3 {[%clk 0:02:58]}  g6 {[%clk 0:02:58]} 3. g3 {[%clk 0:02:56]}  Bg7 {[%clk 0:02:58]} 4. Bg2 {[%clk 0:02:57]}  O-O {[%clk 0:02:57]} 5. O-O {[%clk 0:02:58]}  d6 {[%clk 0:02:58]} 6. b3 {[%clk 0:02:56]}  c5 {[%clk 0:02:55]} 7. Bb2 {[%clk 0:02:54]}  Ne4 {[%clk 0:02:51]} 8. Nbd2 {[%clk 0:02:52]}  Nxd2 {[%clk 0:02:51]} 9. Qxd2 {[%clk 0:02:51]}  Nc6 {[%clk 0:02:50]} 10. c4 {[%clk 0:02:47]}  Qa5 {[%clk 0:02:28]} 11. Bc3 {[%clk 0:02:42]}  Qa3 {[%clk 0:02:29]} 12. Bb2 {[%clk 0:02:39]}  Qa5 {[%clk 0:02:28]} 13. Rfd1 {[%clk 0:02:16]}  Qxd2 {[%clk 0:02:21]} 14. Rxd2 {[%clk 0:02:16]}  cxd4 {[%clk 0:02:09]} 15. Nxd4 {[%clk 0:02:15]}  Bd7 {[%clk 0:02:10]} 16. Nb5 {[%clk 0:02:09]}  Bxb2 {[%clk 0:02:07]} 17. Rxb2 {[%clk 0:02:10]}  Rfc8 {[%clk 0:02:03]} 18. Rd1 {[%clk 0:02:06]}  a6 {[%clk 0:01:49]} 19. Nc3 {[%clk 0:02:05]}  Rab8 {[%clk 0:01:50]} 20. Nd5 {[%clk 0:02:01]}  Kf8 {[%clk 0:01:47]} 21. c5 {[%clk 0:01:50]}  Be6 {[%clk 0:01:00]} 22. cxd6 {[%clk 0:01:48]}  exd6 {[%clk 0:01:01]} 23. Rbd2 {[%clk 0:01:47]}  a5 {[%clk 0:00:57]} 24. Nb6 {[%clk 0:01:44]}  Rc7 {[%clk 0:00:51]} 25. Rxd6 {[%clk 0:01:42]}  Nb4 {[%clk 0:00:52]} 26. R6d2 {[%clk 0:01:37]}  Nxa2 {[%clk 0:00:46]} 27. Rxa2 {[%clk 0:01:03]}  Bxb3 {[%clk 0:00:45]} 28. Rda1 {[%clk 0:00:56]}  Bxa2 {[%clk 0:00:44]} 29. Rxa2 {[%clk 0:00:57]}  Rc1+ {[%clk 0:00:36]} 30. Bf1 {[%clk 0:00:56]}  Rd8 {[%clk 0:00:32]} 31. Rxa5 {[%clk 0:00:38]}  Rdd1 {[%clk 0:00:30]} 32. Ra8+ {[%clk 0:00:37]}  Kg7 {[%clk 0:00:30]} 33. Ra7 {[%clk 0:00:36]}  Rxf1+ {[%clk 0:00:30]} 34. Kg2 {[%clk 0:00:37]}  Rfe1 {[%clk 0:00:31]} 35. Rxb7 {[%clk 0:00:19]}  Rxe2 {[%clk 0:00:30]} 36. Nd5 {[%clk 0:00:15]}  Rcc2 {[%clk 0:00:29]} 0-1


[Site "https://www.chess.com"]

[Event "Titled Tuesday Blitz May 30 Early 2023"]
[White "Lymar, Vladislav"]
[Black "Karthik Rajaa"]
[WhiteFideId "14162180"]
[BlackFideId "25035215"]
[WhiteElo "2234"]
[BlackElo "2215"]
[Result "0-1"]
[Round "07"]
[TimeControl "180+2"]
[Date "2023.05.30"]
[WhiteClock "0:00:54"]
[BlackClock "0:02:25"]

1. b3 {[%clk 0:01:04]}  Nf6 {[%clk 0:02:52]} 2. Bb2 {[%clk 0:01:05]}  g6 {[%clk 0:02:52]} 3. g3 {[%clk 0:01:06]}  Bg7 {[%clk 0:02:52]} 4. Bg2 {[%clk 0:01:06]}  O-O {[%clk 0:02:53]} 5. e3 {[%clk 0:01:07]}  d6 {[%clk 0:02:52]} 6. Ne2 {[%clk 0:01:07]}  a5 {[%clk 0:02:49]} 7. O-O {[%clk 0:01:08]}  a4 {[%clk 0:02:49]} 8. bxa4 {[%clk 0:01:09]}  Rxa4 {[%clk 0:02:50]} 9. Nbc3 {[%clk 0:01:09]}  Ra8 {[%clk 0:02:49]} 10. Nd5 {[%clk 0:01:06]}  Nxd5 {[%clk 0:02:47]} 11. Bxg7 {[%clk 0:01:06]}  Nxe3 {[%clk 0:02:47]} 12. Bd5 {[%clk 0:01:07]}  Nxd1 {[%clk 0:02:46]} 13. Bxf8 {[%clk 0:01:00]}  Qxf8 {[%clk 0:02:42]} 14. Raxd1 {[%clk 0:01:00]}  c6 {[%clk 0:02:41]} 15. Bg2 {[%clk 0:01:00]}  Rxa2 {[%clk 0:02:41]} 16. Nd4 {[%clk 0:01:00]}  e5 {[%clk 0:02:39]} 17. Nf3 {[%clk 0:00:58]}  Rxc2 {[%clk 0:02:37]} 18. d4 {[%clk 0:00:58]}  e4 {[%clk 0:02:28]} 19. Ne1 {[%clk 0:00:58]}  Re2 {[%clk 0:02:28]} 20. d5 {[%clk 0:00:58]}  cxd5 {[%clk 0:02:25]} 21. Rxd5 {[%clk 0:00:54]}  Be6 {[%clk 0:02:25]} 0-1


[Site "https://www.chess.com"]

[Event "Titled Tuesday Blitz May 30 Early 2023"]
[White "egorchess95"]
[Black "Ozates, Tuna"]
[BlackFideId "6354521"]
[WhiteElo "2706"]
[BlackElo "2151"]
[Result "0-1"]
[Round "07"]
[TimeControl "180+2"]
[Date "2023.05.30"]
[WhiteClock "0:00:13"]
[BlackClock "0:00:12"]

1. e4 {[%clk 0:02:03]}  Nf6 {[%clk 0:02:55]} 2. e5 {[%clk 0:02:01]}  Nd5 {[%clk 0:02:55]} 3. c4 {[%clk 0:02:02]}  Nb6 {[%clk 0:02:55]} 4. c5 {[%clk 0:02:02]}  Nd5 {[%clk 0:02:55]} 5. Bc4 {[%clk 0:02:03]}  e6 {[%clk 0:02:55]} 6. d4 {[%clk 0:02:04]}  d6 {[%clk 0:02:55]} 7. cxd6 {[%clk 0:02:04]}  cxd6 {[%clk 0:02:56]} 8. Nf3 {[%clk 0:02:03]}  dxe5 {[%clk 0:02:43]} 9. dxe5 {[%clk 0:02:01]}  Bb4+ {[%clk 0:02:43]} 10. Bd2 {[%clk 0:01:57]}  Bxd2+ {[%clk 0:02:37]} 11. Nbxd2 {[%clk 0:01:51]}  Nc6 {[%clk 0:02:37]} 12. O-O {[%clk 0:01:50]}  O-O {[%clk 0:02:38]} 13. Ne4 {[%clk 0:01:50]}  f6 {[%clk 0:02:30]} 14. exf6 {[%clk 0:01:39]}  Nxf6 {[%clk 0:02:31]} 15. Nc5 {[%clk 0:01:32]}  Qe7 {[%clk 0:02:28]} 16. Nb3 {[%clk 0:01:20]}  Kh8 {[%clk 0:02:05]} 17. Re1 {[%clk 0:01:19]}  e5 {[%clk 0:02:06]} 18. h3 {[%clk 0:01:16]}  Bf5 {[%clk 0:02:04]} 19. Bb5 {[%clk 0:01:12]}  Rad8 {[%clk 0:02:04]} 20. Qe2 {[%clk 0:01:12]}  Be4 {[%clk 0:01:37]} 21. Nbd2 {[%clk 0:01:05]}  Bxf3 {[%clk 0:01:24]} 22. Nxf3 {[%clk 0:01:06]}  e4 {[%clk 0:01:24]} 23. Bxc6 {[%clk 0:00:57]}  bxc6 {[%clk 0:01:23]} 24. Qc4 {[%clk 0:00:57]}  Qb7 {[%clk 0:01:08]} 25. Ng5 {[%clk 0:00:41]}  Qxb2 {[%clk 0:01:06]} 26. Nf7+ {[%clk 0:00:37]}  Rxf7 {[%clk 0:01:06]} 27. Qxf7 {[%clk 0:00:38]}  h6 {[%clk 0:01:03]} 28. Rad1 {[%clk 0:00:36]}  Rd5 {[%clk 0:00:44]} 29. Qxa7 {[%clk 0:00:33]}  Rg5 {[%clk 0:00:27]} 30. a4 {[%clk 0:00:23]}  Qe5 {[%clk 0:00:21]} 31. Rd8+ {[%clk 0:00:19]}  Kh7 {[%clk 0:00:21]} 32. Qb8 {[%clk 0:00:20]}  Qf5 {[%clk 0:00:19]} 33. Rh8+ {[%clk 0:00:19]}  Kg6 {[%clk 0:00:19]} 34. Rf8 {[%clk 0:00:18]}  Qxh3 {[%clk 0:00:16]} 35. Qe8+ {[%clk 0:00:18]}  Nxe8 {[%clk 0:00:15]} 36. g3 {[%clk 0:00:19]}  Nf6 {[%clk 0:00:13]} 37. a5 {[%clk 0:00:18]}  Rxa5 {[%clk 0:00:12]} 38. Rd8 {[%clk 0:00:13]}  Rh5 {[%clk 0:00:12]} 0-1


[Site "https://www.chess.com"]